fUSD/lending_fUSD_20240327
["ID","MTS","AMOUNT","RATE_DAILY","PERIOD"]
[320753503,1711545099048,-893.14,0.00056438,120]
[320753504,1711545099060,-500.0,0.00056438,120]
[320753505,1711545099069,-11376.4,0.00056438,120]
[320753506,1711545099079,-500.0,0.00056438,120]
[320753507,1711545099088,-8065.37,0.00056438,120]
[320753508,1711545099098,-1547.28,0.00056438,120]
[320753509,1711545099107,-1965.98,0.00056438,120]
[320753510,1711545099117,-500.0,0.00056438,120]
[320753511,1711545099127,-11227.74,0.00056438,120]
[320753512,1711545099180,-1169.22,0.00056438,120]
[320753513,1711545099190,-1550.86,0.00056438,120]
[320753514,1711545099199,-1389.24,0.00056438,120]
[320753515,1711545099208,-2427.55,0.00056438,120]
[320753516,1711545099218,-500.0,0.00056438,120]
[320753517,1711545099227,-812.47,0.00056438,120]
[320753518,1711545099237,-937.62,0.00056438,120]
[320753519,1711545099247,-621.57,0.00056438,120]
[320753520,1711545099256,-548.55,0.00056438,120]
[320753521,1711545099266,-3287.18,0.00056438,120]
[320753522,1711545099276,-500.0,0.00056438,120]
[320753523,1711545099286,-1103.29,0.00056438,120]
[320753524,1711545099294,-2626.7,0.00056438,120]
[320753525,1711545099304,-2273.64,0.00056438,120]
[320753526,1711545099314,-2808.51,0.00056438,120]
[320753527,1711545099325,-750.38985928,0.00056438,120]
[320753528,1711545099604,-1247.95014072,0.00056438,120]
[320753529,1711545099614,-593.53,0.00056438,120]
[320753530,1711545099624,-6582.74,0.00056438,120]
[320753531,1711545099634,-919.65,0.00056438,120]
[320753532,1711545099644,-826.55,0.00056438,120]
[320753533,1711545099656,-3143.51,0.00056438,120]
[320753534,1711545099665,-847.53,0.00056438,120]
[320753535,1711545099675,-500.0,0.00056438,85]
[320753536,1711545099685,-471.098163,0.00056498,111]
[320753537,1711545099694,-2000.0,0.000565,30]
[320753538,1711545099704,-163.60210769,0.00056533,120]
[320753539,1711545099714,-285.549847,0.00056535,120]
[320753540,1711545099724,-151.0,0.00056535,120]
[320753541,1711545099734,-153.853557,0.00056535,120]
[320753542,1711545099743,-153.853557,0.00056535,120]
[320753543,1711545099752,-379.85225,0.00056535,120]
[320753544,1711545099762,-379.85225,0.00056535,120]
[320753545,1711545099771,-594.87826908,0.0005658,120]
[320753546,1711545099780,-157.04179302,0.00056595,120]
[320753547,1711545099789,-155.71,0.000566,8]
[320753548,1711545099799,-155.71,0.000566,8]
[320753549,1711545099809,-155.71,0.000566,8]
[320753550,1711545099818,-150.0,0.0005663,14]
[320753551,1711545099828,-223.0,0.0005663,78]
[320753552,1711545099837,-779.14,0.0005664,2]
[320753553,1711545099847,-150.0,0.00056651,14]
[320753554,1711545099857,-188.95455065,0.00056666,120]
[320753555,1711545099866,-150.0,0.00056682,14]
[320753556,1711545099875,-150.0,0.00056704,14]
[320753557,1711545099885,-500.0,0.00056712,120]
[320753558,1711545099894,-500.0,0.00056712,120]
[320753559,1711545099905,-500.0,0.00056712,120]
[320753560,1711545099914,-500.0,0.00056712,120]
[320753561,1711545099924,-500.0,0.00056712,120]
[320753562,1711545099933,-500.0,0.00056712,120]
[320753563,1711545099943,-500.0,0.00056712,120]
[320753564,1711545099952,-500.0,0.00056712,120]
[320753565,1711545099962,-500.0,0.00056712,120]
[320753566,1711545099971,-500.0,0.00056712,120]
[320753567,1711545099980,-500.0,0.00056712,120]
[320753568,1711545099991,-500.0,0.00056712,120]
[320753569,1711545100001,-225.49932365,0.00056712,120]
[320753570,1711545100010,-500.0,0.00056712,120]
[320753571,1711545100020,-1961.67,0.00056712,120]
[320753572,1711545100030,-500.0,0.00056712,120]
[320753573,1711545100039,-500.0,0.00056712,120]
[320753574,1711545100048,-820.11,0.00056712,120]
[320753575,1711545100059,-1615.14,0.00056712,120]
[320753576,1711545100070,-500.0,0.00056712,120]
[320753577,1711545100080,-500.0,0.00056712,120]
[320753578,1711545100091,-500.0,0.00056712,120]
[320753579,1711545100102,-11437.01441624,0.00056712,92]
[320753580,1711545100112,-1181.42,0.00056712,120]
[320753581,1711545100124,-11437.01441624,0.00056712,92]
[320753582,1711545100134,-11437.01441624,0.00056712,92]
[320753583,1711545100146,-11437.01441624,0.00056712,92]
[320753584,1711545100162,-11437.01441624,0.00056712,92]
[320753585,1711545100173,-11437.01441624,0.00056712,92]
[320753586,1711545100183,-11437.01441624,0.00056712,92]
[320753587,1711545100193,-11437.01441624,0.00056712,92]
[320753588,1711545100203,-11437.01441624,0.00056712,92]
[320753589,1711545100212,-11437.01341624,0.00056712,92]
[320753590,1711545100222,-500.0,0.00056712,120]
[320753591,1711545100232,-2874.39,0.00056712,120]
[320753592,1711545100244,-500.0,0.00056712,120]
[320753593,1711545100253,-500.0,0.00056712,120]
[320753594,1711545100262,-500.0,0.00056712,120]
[320753595,1711545100272,-934.73,0.00056712,120]
[320753596,1711545100282,-925.7,0.00056712,120]
[320753597,1711545100292,-263.21,0.00056712,120]
[320753598,1711545100302,-757.64,0.00056712,120]
[320753599,1711545100311,-500.0,0.00056712,120]
[320753600,1711545100321,-500.0,0.00056712,120]
[320753601,1711545100331,-2559.78,0.00056712,120]
[320753602,1711545100340,-500.0,0.00056712,120]
[320753603,1711545100349,-762.08,0.00056712,60]
[320753604,1711545100359,-500.0,0.00056712,120]
[320753605,1711545100368,-2083.65,0.00056712,120]
[320753606,1711545100377,-533.62,0.00056712,120]
[320753607,1711545100387,-1701.37,0.00056712,120]
[320753608,1711545100397,-500.0,0.00056712,120]
[320753609,1711545100410,-957.41,0.00056712,120]
[320753610,1711545100420,-2368.37,0.00056712,120]
[320753611,1711545100430,-500.0,0.00056712,120]
[320753612,1711545100440,-1114.19,0.00056712,120]
[320753613,1711545100450,-500.0,0.00056712,120]
[320753614,1711545100459,-500.0,0.00056712,120]
[320753615,1711545100469,-500.0,0.00056712,120]
[320753616,1711545100479,-702.41,0.00056712,120]
[320753617,1711545100489,-845.28,0.00056712,120]
[320753618,1711545100499,-857.93,0.00056712,120]
[320753619,1711545100509,-563.4,0.00056712,120]
[320753620,1711545100519,-500.0,0.00056712,120]
[320753621,1711545100530,-665.89,0.00056712,120]
[320753622,1711545100541,-500.0,0.00056712,120]
[320753623,1711545100550,-500.0,0.00056712,120]
[320753624,1711545100560,-500.0,0.00056712,120]
[320753625,1711545100570,-500.0,0.00056712,120]
[320753626,1711545100580,-734.62,0.00056712,120]
[320753627,1711545100589,-1991.27,0.00056712,120]
[320753628,1711545100600,-500.0,0.00056712,120]
[320753629,1711545100610,-500.0,0.00056712,120]
[320753630,1711545100619,-500.0,0.00056712,120]
[320753631,1711545100630,-500.0,0.00056712,120]
[320753632,1711545100641,-982.98,0.00056712,120]
[320753633,1711545100652,-500.0,0.00056712,120]
[320753634,1711545100663,-510.83,0.00056712,120]
[320753635,1711545100674,-2092.14,0.00056712,120]
[320753636,1711545100685,-589.59,0.00056712,120]
[320753637,1711545100696,-500.0,0.00056712,120]
[320753638,1711545100706,-500.0,0.00056712,120]
[320753639,1711545100716,-1186.03,0.00056712,120]
[320753640,1711545100732,-688.84,0.00056712,120]
[320753641,1711545100743,-500.0,0.00056712,120]
[320753642,1711545100765,-500.0,0.00056712,120]
[320753643,1711545100784,-500.0,0.00056712,120]
[320753644,1711545100794,-519.0,0.00056712,120]
[320753645,1711545100805,-639.78,0.00056712,120]
[320753646,1711545100815,-500.0,0.00056712,120]
[320753647,1711545100824,-676.45,0.00056712,120]
[320753648,1711545100835,-605.76,0.00056712,120]
[320753649,1711545100845,-1021.21,0.00056712,120]
[320753650,1711545100856,-694.01,0.00056712,120]
[320753651,1711545100866,-459.42,0.00056712,120]
[320753652,1711545100876,-602.67,0.00056712,120]
[320753653,1711545100885,-500.0,0.00056712,120]
[320753654,1711545100895,-500.0,0.00056712,120]
[320753655,1711545100907,-636.28,0.00056712,120]
[320753656,1711545100916,-571.87,0.00056712,120]
[320753657,1711545100926,-935.53,0.00056712,120]
[320753658,1711545100936,-362.04,0.00056712,120]
[320753659,1711545100945,-1161.12,0.00056712,120]
[320753660,1711545100955,-307.92,0.00056712,120]
[320753661,1711545100964,-500.0,0.00056712,120]
[320753662,1711545100973,-500.0,0.00056712,120]
[320753663,1711545100982,-609.66,0.00056712,120]
[320753664,1711545100991,-327.01228065,0.00056712,120]
[320753665,1711545101000,-500.0,0.00056712,120]
[320753666,1711545101010,-500.0,0.00056712,120]
[320753667,1711545101021,-1152.46,0.00056712,120]
[320753668,1711545101030,-509.2,0.00056712,120]
[320753669,1711545101040,-500.0,0.00056712,120]
[320753670,1711545101050,-793.3,0.00056712,120]
[320753671,1711545101059,-500.0,0.00056712,120]
[320753672,1711545101072,-500.0,0.00056712,120]
[320753673,1711545101081,-669.53,0.00056712,120]
[320753674,1711545101091,-500.0,0.00056712,120]
[320753675,1711545101100,-807.63,0.00056712,120]
[320753676,1711545101110,-500.0,0.00056712,120]
[320753677,1711545101119,-701.89,0.00056712,120]
[320753678,1711545101134,-663.69,0.00056712,120]
[320753679,1711545101145,-794.84,0.00056712,120]
[320753680,1711545101165,-551.28,0.00056712,120]
[320753681,1711545101177,-500.0,0.00056712,120]
[320753682,1711545101187,-813.9,0.00056712,120]
[320753683,1711545101197,-500.0,0.00056712,120]
[320753684,1711545101208,-896.96,0.00056712,120]
[320753685,1711545101219,-500.0,0.00056712,120]
[320753686,1711545101230,-500.0,0.00056712,120]
[320753687,1711545101241,-305.32,0.00056712,120]
[320753688,1711545101252,-644.56,0.00056712,120]
[320753689,1711545101263,-500.0,0.00056712,120]
[320753690,1711545101274,-1057.11,0.00056712,120]
[320753691,1711545101285,-503.38,0.00056712,120]
[320753692,1711545101296,-155.14,0.00056712,120]
[320753693,1711545101306,-521.68,0.00056712,120]
[320753694,1711545101316,-1089.53,0.00056712,120]
[320753695,1711545101326,-1006.34,0.00056712,120]
[320753696,1711545101336,-500.0,0.00056712,120]
[320753697,1711545101348,-500.0,0.00056712,120]
[320753698,1711545101358,-599.01,0.00056712,120]
[320753699,1711545101368,-500.0,0.00056712,120]
[320753700,1711545101378,-500.0,0.00056712,120]
[320753701,1711545101387,-500.0,0.00056712,120]
[320753702,1711545101397,-500.0,0.00056712,120]
[320753703,1711545101410,-500.0,0.00056712,120]
[320753704,1711545101419,-753.3,0.00056712,120]
[320753705,1711545101428,-808.54,0.00056712,120]
[320753706,1711545101438,-500.0,0.00056712,120]
[320753707,1711545101449,-635.79,0.00056712,120]
[320753708,1711545101459,-606.72,0.00056712,120]
[320753709,1711545101468,-500.0,0.00056712,120]
[320753710,1711545101478,-2145.05,0.00056712,120]
[320753711,1711545101488,-728.45,0.00056712,120]
[320753712,1711545101497,-500.0,0.00056712,120]
[320753713,1711545101507,-1062.14,0.00056712,120]
[320753714,1711545101516,-500.0,0.00056712,120]
[320753715,1711545101525,-632.09,0.00056712,120]
[320753716,1711545101536,-523.59,0.00056712,120]
[320753717,1711545101545,-500.0,0.00056712,120]
[320753718,1711545101555,-889.55,0.00056712,120]
[320753719,1711545101565,-500.0,0.00056712,120]
[320753720,1711545101574,-558.02,0.00056712,120]
[320753721,1711545101583,-500.0,0.00056712,120]
[320753722,1711545101594,-951.16,0.00056712,120]
[320753723,1711545101604,-1984.5,0.00056712,120]
[320753724,1711545101614,-500.0,0.00056712,120]
[320753725,1711545101624,-500.0,0.00056712,120]
[320753726,1711545101634,-500.0,0.00056712,120]
[320753727,1711545101644,-671.68,0.00056712,120]
[320753728,1711545101657,-1096.53,0.00056712,120]
[320753729,1711545101666,-500.0,0.00056712,120]
[320753730,1711545101675,-1269.92,0.00056712,120]
[320753731,1711545101685,-1397.6,0.00056712,120]
[320753732,1711545101694,-755.05,0.00056712,120]
[320753733,1711545101705,-500.0,0.00056712,120]
[320753734,1711545101715,-746.9,0.00056712,120]
[320753735,1711545101725,-187.22,0.00056712,120]
[320753736,1711545101735,-500.0,0.00056712,120]
[320753737,1711545101745,-839.93,0.00056712,120]
[320753738,1711545101754,-2294.24,0.00056712,120]
[320753739,1711545101764,-544.95,0.00056712,120]
[320753740,1711545101774,-610.95,0.00056712,120]
[320753741,1711545101784,-500.0,0.00056712,120]
[320753742,1711545101794,-500.0,0.00056712,120]
[320753743,1711545101803,-837.65,0.00056712,120]
[320753744,1711545101813,-500.0,0.00056712,120]
[320753745,1711545101822,-643.05,0.00056712,120]
[320753746,1711545101832,-671.0,0.00056712,120]
[320753747,1711545101842,-500.0,0.00056712,120]
[320753748,1711545101854,-1349.43,0.00056712,120]
[320753749,1711545101864,-785.43,0.00056712,120]
[320753750,1711545101874,-627.15,0.00056712,120]
[320753751,1711545101885,-563.26,0.00056712,120]
[320753752,1711545101895,-500.0,0.00056712,120]
[320753753,1711545101908,-500.0,0.00056712,120]
[320753754,1711545101918,-500.0,0.00056712,120]
[320753755,1711545101928,-1041.1,0.00056712,120]
[320753756,1711545101938,-822.73,0.00056712,120]
[320753757,1711545101947,-500.0,0.00056712,120]
[320753758,1711545101958,-500.0,0.00056712,120]
[320753759,1711545101969,-500.0,0.00056712,120]
[320753760,1711545101979,-1945.56,0.00056712,120]
[320753761,1711545101989,-500.0,0.00056712,120]
[320753762,1711545101999,-500.0,0.00056712,120]
[320753763,1711545102009,-172.47292259,0.00056712,120]
[320753764,1711545102018,-500.0,0.00056712,120]
[320753765,1711545102030,-903.23,0.00056712,120]
[320753766,1711545102039,-500.0,0.00056712,120]
[320753767,1711545102049,-500.0,0.00056712,120]
[320753768,1711545102059,-766.51,0.00056712,120]
[320753769,1711545102071,-633.14,0.00056712,120]
[320753770,1711545102082,-500.0,0.00056712,120]
[320753771,1711545102091,-500.0,0.00056712,120]
[320753772,1711545102101,-500.0,0.00056712,120]
[320753773,1711545102111,-500.0,0.00056712,120]
[320753774,1711545102120,-500.0,0.00056712,120]
[320753775,1711545102130,-585.06,0.00056712,120]
[320753776,1711545102141,-500.0,0.00056712,120]
[320753777,1711545102151,-791.32,0.00056712,30]
[320753778,1711545102163,-500.0,0.00056712,120]
[320753779,1711545102173,-500.0,0.00056712,120]
[320753780,1711545102182,-523.65253752,0.00056712,120]
[320753781,1711545102192,-674.64,0.00056712,120]
[320753782,1711545102203,-586.28,0.00056712,120]
[320753783,1711545102213,-750.38,0.00056712,120]
[320753784,1711545102222,-736.03,0.00056712,120]
[320753785,1711545102232,-1420.19,0.00056712,120]
[320753786,1711545102242,-500.0,0.00056712,120]
[320753787,1711545102252,-669.83,0.00056712,120]
[320753788,1711545102265,-709.74,0.00056712,120]
[320753789,1711545102276,-773.7,0.00056712,120]
[320753790,1711545102287,-797.13,0.00056712,120]
[320753791,1711545102297,-500.0,0.00056712,120]
[320753792,1711545102308,-635.43,0.00056712,120]
[320753793,1711545102320,-788.5,0.00056712,120]
[320753794,1711545102330,-558.92,0.00056712,120]
[320753795,1711545102341,-562.65,0.00056712,120]
[320753796,1711545102352,-500.0,0.00056712,120]
[320753797,1711545102364,-500.0,0.00056712,120]
[320753798,1711545102375,-522.89,0.00056712,120]
[320753799,1711545102386,-2029.21,0.00056712,120]
[320753800,1711545102397,-500.0,0.00056712,120]
[320753801,1711545102413,-500.0,0.00056712,120]
[320753802,1711545102424,-500.0,0.00056712,120]
[320753803,1711545102435,-500.0,0.00056712,120]
[320753804,1711545102447,-500.0,0.00056712,120]
[320753805,1711545102458,-500.0,0.00056712,120]
[320753806,1711545102477,-1002.56,0.00056712,120]
[320753807,1711545102490,-564.14,0.00056712,120]
[320753808,1711545102502,-696.63,0.00056712,120]
[320753809,1711545102514,-500.0,0.00056712,120]
[320753810,1711545102526,-500.0,0.00056712,120]
[320753811,1711545102537,-529.28397064,0.00056712,120]
[320753812,1711545102549,-500.0,0.00056712,120]
[320753813,1711545102561,-500.0,0.00056712,120]
[320753814,1711545102572,-1831.21,0.00056712,120]
[320753815,1711545102584,-417.07,0.00056712,120]
[320753816,1711545102595,-500.0,0.00056712,120]
[320753817,1711545102606,-500.0,0.00056712,120]
[320753818,1711545102618,-500.0,0.00056712,120]
[320753819,1711545102629,-500.0,0.00056712,120]
[320753820,1711545102639,-500.0,0.00056712,120]
[320753821,1711545102654,-500.0,0.00056712,120]
[320753822,1711545102665,-500.0,0.00056712,120]
[320753823,1711545102676,-500.0,0.00056712,120]
[320753824,1711545102687,-500.0,0.00056712,120]
[320753825,1711545102697,-762.75,0.00056712,120]
[320753826,1711545102707,-887.04,0.00056712,120]
[320753827,1711545102717,-500.0,0.00056712,120]
[320753828,1711545102727,-2280.42,0.00056712,120]
[320753829,1711545102737,-500.0,0.00056712,120]
[320753830,1711545102748,-761.49,0.00056712,120]
[320753831,1711545102758,-572.49,0.00056712,120]
[320753832,1711545102768,-666.95,0.00056712,120]
[320753833,1711545102777,-989.63,0.00056712,120]
[320753834,1711545102787,-2038.73,0.00056712,120]
[320753835,1711545102797,-500.0,0.00056712,120]
[320753836,1711545102807,-966.04,0.00056712,120]
[320753837,1711545102818,-7410.27,0.00056712,120]
[320753838,1711545102828,-591.2,0.00056712,120]
[320753839,1711545102838,-1021.61,0.00056712,120]
[320753840,1711545102848,-917.72,0.00056712,120]
[320753841,1711545102858,-1185.67,0.00056712,120]
[320753842,1711545102868,-500.0,0.00056712,120]
[320753843,1711545102877,-4131.44,0.00056712,120]
[320753844,1711545102887,-500.0,0.00056712,120]
[320753845,1711545102896,-1840.41,0.00056712,120]
[320753846,1711545102908,-2021.69,0.00056712,120]
[320753847,1711545102918,-500.0,0.00056712,120]
[320753848,1711545102927,-881.25,0.00056712,120]
[320753849,1711545102936,-1046.06,0.00056712,120]
[320753850,1711545102946,-3117.06,0.00056712,120]
[320753851,1711545102956,-500.0,0.00056712,120]
[320753852,1711545102966,-743.64,0.00056712,120]
[320753853,1711545102976,-6836.54,0.00056712,120]
[320753854,1711545102985,-500.0,0.00056712,120]
[320753855,1711545102995,-2764.61,0.00056712,120]
[320753856,1711545103005,-804.84,0.00056712,120]
[320753857,1711545103015,-1965.13,0.00056712,120]
[320753858,1711545103027,-4896.21,0.00056712,120]
[320753859,1711545103037,-501.09,0.00056712,120]
[320753860,1711545103047,-500.0,0.00056712,120]
[320753861,1711545103056,-797.84,0.00056712,120]
[320753862,1711545103067,-1995.94,0.00056712,120]
[320753863,1711545103076,-204.05655516,0.00056712,120]
[320753864,1711545103086,-1043.28,0.00056712,120]
[320753865,1711545103095,-500.0,0.00056712,120]
[320753866,1711545103106,-2893.0,0.00056712,120]
[320753867,1711545103116,-15249.71,0.00056712,120]
[320753868,1711545103126,-500.0,0.00056712,120]
[320753869,1711545103135,-558.52,0.00056712,120]
[320753870,1711545103146,-75992.14,0.00056712,120]
[320753871,1711545103157,-3596.62,0.00056712,120]
[320753872,1711545103167,-500.0,0.00056712,120]
[320753873,1711545103177,-326.84,0.00056712,120]
[320753874,1711545103188,-500.0,0.00056712,120]
[320753875,1711545103197,-3332.62,0.00056712,120]
[320753876,1711545103206,-4816.18,0.00056712,120]
[320753877,1711545103216,-1863.41,0.00056712,120]
[320753878,1711545103226,-500.0,0.00056712,120]
[320753879,1711545103236,-7622.66,0.00056712,120]
[320753880,1711545103246,-500.0,0.00056712,120]
[320753881,1711545103256,-1308.14,0.00056712,120]
[320753882,1711545103265,-2387.05,0.00056712,120]
[320753883,1711545103275,-6076.26,0.00056712,120]
[320753884,1711545103284,-500.0,0.00056712,120]
[320753885,1711545103293,-1319.68,0.00056712,120]
[320753886,1711545103303,-611.06,0.00056712,120]
[320753887,1711545103312,-5368.72,0.00056712,120]
[320753888,1711545103321,-5144.72,0.00056712,120]
[320753889,1711545103331,-2956.7,0.00056712,120]
[320753890,1711545103340,-500.0,0.00056712,120]
[320753891,1711545103350,-518.82,0.00056712,120]
[320753892,1711545103360,-989.52,0.00056712,120]
[320753893,1711545103370,-3326.27,0.00056712,120]
[320753894,1711545103379,-500.0,0.00056712,120]
[320753895,1711545103389,-3041.64,0.00056712,120]
[320753896,1711545103399,-500.0,0.00056712,120]
[320753897,1711545103411,-20346.3,0.00056712,120]
[320753898,1711545103421,-9005.78,0.00056712,120]
[320753899,1711545103430,-2619.34,0.00056712,120]
[320753900,1711545103440,-641.52,0.00056712,120]
[320753901,1711545103450,-4819.76,0.00056712,120]
[320753902,1711545103459,-500.0,0.00056712,120]
[320753903,1711545103468,-595.36,0.00056712,120]
[320753904,1711545103478,-4918.59,0.00056712,120]
[320753905,1711545103488,-3188.02,0.00056712,120]
[320753906,1711545103497,-500.0,0.00056712,120]
[320753907,1711545103507,-3264.58,0.00056712,120]
[320753908,1711545103516,-2720.41,0.00056712,120]
[320753909,1711545103525,-1357.49,0.00056712,120]
[320753910,1711545103534,-616.58,0.00056712,120]
[320753911,1711545103544,-611.94,0.00056712,120]
[320753912,1711545103555,-500.0,0.00056712,120]
[320753913,1711545103565,-511.18,0.00056712,120]
[320753914,1711545103576,-500.0,0.00056712,120]
[320753915,1711545103586,-1000.0,0.00056712,14]
[320753916,1711545103596,-5095.68,0.00056712,120]
[320753917,1711545103605,-4056.72,0.00056712,120]
[320753918,1711545103615,-8837.31,0.00056712,120]
[320753919,1711545103624,-1076.16,0.00056712,120]
[320753920,1711545103634,-2391.62,0.00056712,120]
[320753921,1711545103644,-528.46,0.00056712,120]
[320753922,1711545103656,-1376.44,0.00056712,120]
[320753923,1711545103666,-2516.81,0.00056712,120]
[320753924,1711545103677,-41305.17,0.00056712,120]
[320753925,1711545103688,-3046.15,0.00056712,120]
[320753926,1711545103700,-835.27,0.00056712,120]
[320753927,1711545103711,-5486.9,0.00056712,120]
[320753928,1711545103723,-2405.09,0.00056712,120]
[320753929,1711545103734,-500.0,0.00056712,120]
[320753930,1711545103745,-1426.57,0.00056712,120]
[320753931,1711545103756,-2003.76,0.00056712,120]
[320753932,1711545103766,-5722.98,0.00056712,120]
[320753933,1711545103777,-844.73,0.00056712,120]
[320753934,1711545103788,-617.63320107,0.00056712,120]
[320753935,1711545103813,-375.82679893,0.00056712,120]
[320753936,1711545103824,-6090.95,0.00056712,120]
[320753937,1711545103834,-1283.48,0.00056712,120]
[320753938,1711545103845,-985.29,0.00056712,120]
[320753939,1711545103856,-671.24,0.00056712,120]
[320753940,1711545103866,-2372.43,0.00056712,120]
[320753941,1711545103876,-500.0,0.00056712,120]
[320753942,1711545103886,-2269.62,0.00056712,120]
[320753943,1711545103898,-3926.77,0.00056712,120]
[320753944,1711545103913,-3735.27,0.00056712,120]
[320753945,1711545103924,-6290.77,0.00056712,120]
[320753946,1711545103934,-4585.67,0.00056712,120]
[320753947,1711545104159,-13466.38,0.00056712,120]
[320753948,1711545104168,-1447.6,0.00056712,120]
[320753949,1711545104179,-500.0,0.00056712,120]
[320753950,1711545104188,-455.38937021,0.00056712,120]
[320753951,1711545104199,-1646.74,0.00056712,120]
[320753952,1711545104211,-3987.19,0.00056712,120]
[320753953,1711545104221,-2105.18,0.00056712,120]
[320753954,1711545104231,-527.29,0.00056712,120]
[320753955,1711545104241,-1059.25,0.00056712,120]
[320753956,1711545104250,-500.0,0.00056712,120]
[320753957,1711545104261,-6467.88,0.00056712,120]
[320753958,1711545104272,-1043.38,0.00056712,120]
[320753959,1711545104281,-5114.35,0.00056712,120]
[320753960,1711545104292,-3638.16,0.00056712,120]
[320753961,1711545104303,-5717.55,0.00056712,120]
[320753962,1711545104313,-1695.49,0.00056712,120]
[320753963,1711545104324,-3104.92,0.00056712,120]
[320753964,1711545104334,-500.0,0.00056712,120]
[320753965,1711545104352,-500.0,0.00056712,120]
[320753966,1711545104363,-710.05,0.00056712,120]
[320753967,1711545104372,-9267.85,0.00056712,120]
[320753968,1711545104382,-7768.64,0.00056712,120]
[320753969,1711545104391,-1454.41,0.00056712,120]
[320753970,1711545104403,-5542.26,0.00056712,120]
[320753971,1711545104411,-791.84,0.00056712,120]
[320753972,1711545104421,-51213.0,0.00056712,120]
[320753973,1711545104431,-621.84,0.00056712,120]
[320753974,1711545104440,-947.8,0.00056712,120]
[320753975,1711545104450,-3395.08,0.00056712,120]
[320753976,1711545104460,-5893.22,0.00056712,120]
[320753977,1711545104473,-500.0,0.00056712,120]
[320753978,1711545104483,-4278.93,0.00056712,120]
[320753979,1711545104493,-31450.21,0.00056712,120]
[320753980,1711545104503,-500.0,0.00056712,120]
[320753981,1711545104513,-5728.65024193,0.00056712,120]
[320753982,1711545104534,-275.34,0.00019,2]
[320753983,1711545104584,-557.37737218,0.00019,2]
[320753984,1711545104594,-180.67975807,0.00056712,120]
[320753985,1711545104604,-518.71,0.00056712,120]
[320753986,1711545104614,-5023.68,0.00056712,120]
[320753987,1711545104624,-614.55,0.00056712,120]
[320753988,1711545104634,-2654.52,0.00056712,120]
[320753989,1711545104644,-8389.13,0.00056712,120]
[320753990,1711545104656,-1079.12,0.00056712,120]
[320753991,1711545104666,-627.77,0.00056712,120]
[320753992,1711545104677,-2857.46,0.00056712,120]
[320753993,1711545104688,-908.56,0.00056712,120]
[320753994,1711545104698,-267.3,0.00056712,120]
[320753995,1711545104711,-15730.44,0.00056712,120]
[320753996,1711545104722,-500.0,0.00056712,7]
[320753997,1711545104734,-500.0,0.00056712,120]
[320753998,1711545104745,-2505.02,0.00056712,120]
[320753999,1711545104756,-513.75256927,0.00056712,120]
[320754000,1711545104769,-17170.86743073,0.00056712,120]
[320754001,1711545104779,-1883.86,0.00056712,120]
[320754002,1711545104790,-6978.33724707,0.00056712,120]